[Event "57th Biel Festival MTO 2024"]
[White "Munkhzul,Turmunkh"]
[Black "Stefan,Iulia-Cristiana"]
[Site "Biel"]
[Round "1.59"]
[Annotator "RC"]
[Result "1-0"]
[Date "2024.07.15"]
[WhiteElo "2232"]
[BlackElo "1953"]
[PlyCount "130"]
[TimeControl "60"]

1. e4 {[%emt 0:0:3]} e5 {[%emt 0:0:7]} 2. Nf3 {[%emt 0:0:7]} Nc6 {[%emt 0:0:5]} 3. Bb5 {[%emt 0:0:12]} a6 {[%emt 0:0:8]} 4. Bxc6 {[%emt 0:0:5]} dxc6 {[%emt 0:0:12]} 5. Nc3 {[%emt 0:0:6]} Bd6 {[%emt 0:0:16]} 6. d4 {[%emt 0:0:5]} exd4 {[%emt 0:4:9]} 7. Qxd4 {[%emt 0:0:7]} f6 {[%emt 0:2:55]} 8. Be3 {[%emt 0:3:44]} Be6 {[%emt 0:2:43]} 9. O-O-O {[%emt 0:0:9]} Ne7 {[%emt 0:10:3]} 10. Kb1 {[%emt 0:0:20]} Ng6 {[%emt 0:3:39]} 11. Na4 {[%emt 0:1:13]} b6 {[%emt 0:15:29]} 12. Nxb6 {[%emt 0:0:49]} Rb8 {[%emt 0:16:53]} 13. Nc4 {[%emt 0:0:45]} Kf7 {[%emt 0:17:16]} 14. Nxd6+ {[%emt 0:5:24]} cxd6 {[%emt 0:0:2]} 15. Qa7+ {[%emt 0:0:31]} Ne7 {[%emt 0:2:10]} 16. Nd4 {[%emt 0:0:25]} Qc8 {[%emt 0:12:13]} 17. Nxe6 {[%emt 0:1:16]} Qxe6 {[%emt 0:0:8]} 18. Qd4 {[%emt 0:0:31]} Rhd8 {[%emt 0:1:17]} 19. f3 {[%emt 0:4:18]} d5 {[%emt 0:2:49]} 20. Bc1 {[%emt 0:10:39]} dxe4 {[%emt 0:3:37]} 21. Qxe4 {[%emt 0:0:15]} Qxe4 {[%emt 0:0:30]} 22. fxe4 {[%emt 0:0:4]} Ng6 {[%emt 0:0:12]} 23. c3 {[%emt 0:1:6]} Ke6 {[%emt 0:1:25]} 24. Kc2 {[%emt 0:1:18]} Ke5 {[%emt 0:0:48]} 25. Rxd8 {[%emt 0:0:16]} Rxd8 {[%emt 0:0:5]} 26. Re1 {[%emt 0:0:8]} Nf8 {[%emt 0:1:8]} 27. Be3 {[%emt 0:0:24]} Ne6 {[%emt 0:0:34]} 28. Bf2 {[%emt 0:0:10]} Ng5 {[%emt 0:0:41]} 29. Bd4+ {[%emt 0:1:14]} Ke6 {[%emt 0:0:11]} 30. b4 {[%emt 0:0:18]} Re8 {[%emt 0:0:29]} 31. h4 {[%emt 0:3:9]} Nf7 {[%emt 0:0:21]} 32. a4 {[%emt 0:0:15]} Kd7 {[%emt 0:0:46]} 33. Kd3 {[%emt 0:0:16]} Nd6 {[%emt 0:0:24]} 34. Re2 {[%emt 0:0:45]} Nb7 {[%emt 0:0:13]} 35. e5 {[%emt 0:0:13]} fxe5 {[%emt 0:0:37]} 36. Rxe5 {[%emt 0:0:17]} Rf8 {[%emt 0:0:45]} 37. Rg5 {[%emt 0:0:19]} g6 {[%emt 0:0:30]} 38. h5 {[%emt 0:0:19]} Rg8 {[%emt 0:0:35]} 39. c4 {[%emt 0:0:20]} Kc8 {[%emt 0:3:30]} 40. c5 {[%emt 0:3:5]} Nd8 {[%emt 0:0:24]} 41. hxg6 {[%emt 0:50:25]} hxg6 {[%emt 0:50:11]} 42. Kc4 {[%emt 0:2:3]} Ne6 {[%emt 0:7:26]} 43. Rg4 {[%emt 0:0:23]} Kd7 {[%emt 0:0:0]} 44. Rh4 {[%emt 0:0:0]} Ng5 {[%emt 0:0:0]} 45. Bf6 {[%emt 0:0:0]} Nf7 {[%emt 0:0:0]} 46. Re4 {[%emt 0:0:0]} Re8 {[%emt 0:0:0]} 47. Rxe8 {[%emt 0:0:0]} Kxe8 {[%emt 0:0:0]} 48. b5 {[%emt 0:0:0]} axb5+ {[%emt 0:0:0]} 49. axb5 {[%emt 0:0:0]} cxb5+ {[%emt 0:0:0]} 50. Kxb5 {[%emt 0:0:0]} Kd7 {[%emt 0:0:0]} 51. Kb6 {[%emt 0:0:0]} Ke6 {[%emt 0:0:0]} 52. Bh4 {[%emt 0:0:0]} Kd7 {[%emt 0:0:0]} 53. c6+ {[%emt 0:0:0]} Kc8 {[%emt 0:0:0]} 54. Kc5 {[%emt 0:0:0]} g5 {[%emt 0:0:0]} 55. Bg3 {[%emt 0:0:0]} Nh6 {[%emt 0:0:0]} 56. Be5 {[%emt 0:0:0]} Nf5 {[%emt 0:0:0]} 57. g3 {[%emt 0:0:0]} g4 {[%emt 0:0:0]} 58. Kd5 {[%emt 0:0:0]} Ne7+ {[%emt 0:0:0]} 59. Kd6 {[%emt 0:0:0]} Nf5+ {[%emt 0:0:0]} 60. Ke6 {[%emt 0:0:0]} Ne3 {[%emt 0:0:0]} 61. Bf4 {[%emt 0:0:0]} Ng2 {[%emt 0:8:31]} 62. Kf5 {[%emt 0:0:0]} Nxf4 {[%emt 0:1:7]} 63. Kxf4 {[%emt 0:0:0]} Kc7 {[%emt 0:0:7]} 64. Kxg4 {[%emt 0:0:0]} Kxc6 {[%emt 0:0:12]} 65. Kf5 {[%emt 0:0:0]} Kd5 {[%emt 0:0:7]} 1-0

[Event "57th Biel Festival MTO 2024"]
[White "Liu,Kimberly"]
[Black "Krishnan,Ritvik"]
[Site "Biel"]
[Round "1.60"]
[Annotator "RC"]
[Result "1/2-1/2"]
[Date "2024.07.15"]
[WhiteElo "1941"]
[BlackElo "2297"]
[PlyCount "119"]
[TimeControl "60"]

1. Nf3 {[%emt 0:0:5]} d5 {[%emt 0:0:26]} 2. b3 {[%emt 0:0:7]} Bf5 {[%emt 0:0:7]} 3. Bb2 {[%emt 0:0:6]} e6 {[%emt 0:0:9]} 4. g3 {[%emt 0:0:21]} Nf6 {[%emt 0:0:8]} 5. Bg2 {[%emt 0:0:5]} Be7 {[%emt 0:0:20]} 6. O-O {[%emt 0:0:21]} O-O {[%emt 0:0:24]} 7. d3 {[%emt 0:0:40]} h6 {[%emt 0:0:59]} 8. Nbd2 {[%emt 0:0:17]} a5 {[%emt 0:1:40]} 9. a3 {[%emt 0:6:32]} Bh7 {[%emt 0:4:25]} 10. Re1 {[%emt 0:2:18]} c6 {[%emt 0:4:16]} 11. e4 {[%emt 0:3:35]} Na6 {[%emt 0:8:19]} 12. Qe2 {[%emt 0:12:59]} Nc5 {[%emt 0:8:27]} 13. Ne5 {[%emt 0:9:53]} Qc7 {[%emt 0:3:25]} 14. f4 {[%emt 0:4:2]} Rfd8 {[%emt 0:4:50]} 15. Kh1 {[%emt 0:10:20]} Bf8 {[%emt 0:4:19]} 16. g4 {[%emt 0:11:2]} Nfd7 {[%emt 0:7:19]} 17. exd5 {[%emt 0:29:11]} exd5 {[%emt 0:9:33]} 18. g5 {[%emt 0:4:17]} hxg5 {[%emt 0:3:36]} 19. Qh5 {[%emt 0:5:26]} Nxe5 {[%emt 0:6:29]} 20. Bxe5 {[%emt 0:0:48]} Bd6 {[%emt 0:1:50]} 21. Qxg5 {[%emt 0:0:25]} Ne6 {[%emt 0:6:37]} 22. Qg4 {[%emt 0:0:7]} f5 {[%emt 0:3:29]} 23. Bxd6 {[%emt 0:5:9]} Qxd6 {[%emt 0:0:22]} 24. Qg3 {[%emt 0:0:52]} Nxf4 {[%emt 0:0:41]} 25. Bf3 {[%emt 0:1:38]} Ng6 {[%emt 0:3:30]} 26. Qg5 {[%emt 0:0:17]} Rf8 {[%emt 0:0:29]} 27. Rg1 {[%emt 0:0:56]} Qf4 {[%emt 0:2:11]} 28. Qg2 {[%emt 0:0:3]} Qh6 {[%emt 0:1:17]} 29. Qg5 {[%emt 0:1:38]} Qxg5 {[%emt 0:0:25]} 30. Rxg5 {[%emt 0:0:1]} Nf4 {[%emt 0:0:57]} 31. Rag1 {[%emt 0:0:52]} Ne6 {[%emt 0:3:19]} 32. R5g2 {[%emt 0:0:24]} Rf6 {[%emt 0:1:27]} 33. Bd1 {[%emt 0:0:46]} Re8 {[%emt 0:4:35]} 34. Nf3 {[%emt 0:0:23]} Re7 {[%emt 0:0:42]} 35. Re1 {[%emt 0:0:13]} Rd7 {[%emt 0:3:37]} 36. d4 {[%emt 0:1:6]} f4 {[%emt 0:1:23]} 37. Ne5 {[%emt 0:0:6]} Re7 {[%emt 0:1:11]} 38. c3 {[%emt 0:0:12]} Be4 {[%emt 0:2:3]} 39. Bf3 {[%emt 0:0:1]} Nc5 {[%emt 0:1:34]} 40. Bxe4 {[%emt 0:1:9]} Nxe4 {[%emt 0:0:13]} 41. Nf3 {[%emt 0:3:17]} Kf8 {[%emt 0:7:13]} 42. c4 {[%emt 0:3:13]} Kg8 {[%emt 0:5:36]} 43. Kg1 {[%emt 0:3:58]} Re8 {[%emt 0:5:44]} 44. a4 {[%emt 0:7:52]} Nd6 {[%emt 0:8:40]} 45. Rxe8+ {[%emt 0:1:15]} Nxe8 {[%emt 0:0:2]} 46. Re2 {[%emt 0:0:37]} Nd6 {[%emt 0:1:24]} 47. cxd5 {[%emt 0:0:55]} cxd5 {[%emt 0:0:3]} 48. Re5 {[%emt 0:3:47]} Rf5 {[%emt 0:1:34]} 49. Re7 {[%emt 0:0:31]} b6 {[%emt 0:6:6]} 50. Re6 {[%emt 0:4:42]} Rf6 {[%emt 0:0:35]} 51. Re5 {[%emt 0:0:10]} Nf5 {[%emt 0:2:48]} 52. Rxd5 {[%emt 0:10:47]} Ne3 {[%emt 0:1:15]} 53. Rd8+ {[%emt 0:4:36]} Kh7 {[%emt 0:3:4]} 54. h4 {[%emt 0:3:1]} Rc6 {[%emt 0:1:54]} 55. Rf8 {[%emt 0:2:7]} Rc1+ {[%emt 0:1:57]} 56. Kh2 {[%emt 0:3:10]} Rc2+ {[%emt 0:0:23]} 57. Kh3 {[%emt 0:1:56]} Nd5 {[%emt 0:2:24]} 58. Kg4 {[%emt 0:1:2]} Rg2+ {[%emt 0:2:44]} 59. Kf5 {[%emt 0:0:14]} Ne7+ {[%emt 0:0:13]} 60. Ke6 {[%emt 0:5:4]} 1/2-1/2

[Event "57th Biel Festival MTO 2024"]
[White "Song,Ethan"]
[Black "Pinelli,Gian"]
[Site "Biel"]
[Round "1.61"]
[Annotator "RC"]
[Result "1-0"]
[Date "2024.07.15"]
[WhiteElo "2244"]
[BlackElo "1874"]
[PlyCount "71"]
[TimeControl "60"]

1. e4 {[%emt 0:0:9]} c6 {[%emt 0:0:9]} 2. d4 {[%emt 0:0:33]} d5 {[%emt 0:0:29]} 3. e5 {[%emt 0:0:15]} c5 {[%emt 0:0:24]} 4. c3 {[%emt 0:0:14]} Nc6 {[%emt 0:0:25]} 5. Nf3 {[%emt 0:3:14]} Bg4 {[%emt 0:1:52]} 6. Be2 {[%emt 0:7:41]} e6 {[%emt 0:2:31]} 7. O-O {[%emt 0:2:12]} Bxf3 {[%emt 0:1:42]} 8. Bxf3 {[%emt 0:0:8]} cxd4 {[%emt 0:0:7]} 9. cxd4 {[%emt 0:0:23]} Qb6 {[%emt 0:0:8]} 10. Be3 {[%emt 0:1:8]} Qxb2 {[%emt 0:0:40]} 11. Nd2 {[%emt 0:1:2]} Qa3 {[%emt 0:5:1]} 12. Nb3 {[%emt 0:8:4]} Nge7 {[%emt 0:5:56]} 13. Qd3 {[%emt 0:1:56]} Nf5 {[%emt 0:5:56]} 14. Bxd5 {[%emt 0:2:34]} exd5 {[%emt 0:14:22]} 15. Qxf5 {[%emt 0:0:9]} Rd8 {[%emt 0:10:32]} 16. e6 {[%emt 0:3:54]} fxe6 {[%emt 0:6:34]} 17. Qxe6+ {[%emt 0:0:10]} Qe7 {[%emt 0:3:41]} 18. Qh3 {[%emt 0:0:40]} Qd7 {[%emt 0:1:26]} 19. Qh4 {[%emt 0:4:31]} Be7 {[%emt 0:10:27]} 20. Qh5+ {[%emt 0:0:13]} g6 {[%emt 0:0:20]} 21. Qh6 {[%emt 0:0:41]} Bf8 {[%emt 0:0:51]} 22. Qf4 {[%emt 0:3:13]} Qf7 {[%emt 0:2:5]} 23. Qg4 {[%emt 0:1:57]} Qd7 {[%emt 0:0:33]} 24. Qe2 {[%emt 0:0:18]} Be7 {[%emt 0:1:27]} 25. Bh6 {[%emt 0:2:15]} Kf7 {[%emt 0:3:38]} 26. f4 {[%emt 0:6:8]} Rhe8 {[%emt 0:3:58]} 27. Qf3 {[%emt 0:6:16]} Bf6 {[%emt 0:3:5]} 28. f5 {[%emt 0:5:24]} Qxf5 {[%emt 0:4:28]} 29. Qc3 {[%emt 0:3:9]} Qh5 {[%emt 0:3:36]} 30. Qd2 {[%emt 0:3:10]} Re2 {[%emt 0:3:4]} 31. Qf4 {[%emt 0:2:21]} Qf5 {[%emt 0:2:14]} 32. Qg3 {[%emt 0:2:30]} Qe4 {[%emt 0:6:0]} 33. Rf4 {[%emt 0:2:19]} Qe6 {[%emt 0:5:35]} 34. Bg5 {[%emt 0:2:57]} Qe3+ {[%emt 0:1:43]} 35. Qxe3 {[%emt 0:0:10]} Rxe3 {[%emt 0:0:6]} 36. Rxf6+ {[%emt 0:0:34]} 1-0

[Event "57th Biel Festival MTO 2024"]
[White "Vantika Agrawal"]
[Black "Aryan Chopra"]
[Site "Biel"]
[Round "2.1"]
[Annotator "TA"]
[Result "1/2-1/2"]
[Date "2024.07.16"]
[WhiteElo "2390"]
[BlackElo "2631"]
[PlyCount "57"]
[TimeControl "60"]

{[%evp 14,57,0,0,12,0,0,0,0,0,0,0,0,0,11,8,20,24,25,25,49,43,43,5,22,0,0,-24,0,8,29,25,21,23,27,22,20,17,12,16,128,129,130,50,58,54]} 1. d4 {[%emt 0:0:16]} Nf6 {[%emt 0:0:8]} 2. c4 {[%emt 0:0:6]} e6 {[%emt 0:0:4]} 3. Nf3 {[%emt 0:0:11]} d5 {[%emt 0:0:5]} 4. g3 {[%emt 0:0:10]} dxc4 {[%emt 0:0:11]} 5. Bg2 {[%emt 0:0:13]} a6 {[%emt 0:0:9]} 6. O-O {[%emt 0:0:59]} Nc6 {[%emt 0:0:5]} 7. a4 {[%emt 0:2:1]} Rb8 {[%emt 0:0:35]} 8. a5 {[%emt 0:0:14]} Bb4 {[%emt 0:0:41][%cal Oe8g8]} 9. Na3 {[%emt 0:2:6]} Bxa5 {[%emt 0:4:1]} 10. Nxc4 {[%emt 0:4:12]} Bb4 {[%emt 0:0:23] Die Stellung ist ausgeglichen.} 11. Qb3 {[%emt 0:0:21]} Be7 {[%emt 0:2:1]} 12. Rd1 {[%emt 0:0:21]} O-O {[%emt 0:5:8]} 13. e4 {[%emt 0:0:30]} Bd7 {[%emt 0:7:58]} 14. Nfe5 {[%emt 0:7:33]} Na7 {[%emt 0:11:55][%cal Bc6a7,Ba7b5,Bb5d6][%mdl 32]} 15. Be3 {[%emt 0:7:50] [#] Und d5 würde nun gewinnen.} Nb5 {[%emt 0:1:32]} 16. Rac1 {[%emt 0:14:44]} Nd6 {[%emt 0:10:34]} 17. Nxd7 {[%emt 0:7:5]} Nxd7 {[%emt 0:0:25]} 18. Ne5 {[%emt 0:8:47]} c6 {[%emt 0:8:0]} 19. h4 {[%emt 0:13:34]} Nb5 {[%emt 0:4:50]} 20. f4 {[%emt 0:12:30]} Nxe5 {[%emt 0:9:43]} 21. fxe5 {[%emt 0:1:18]} Rc8 {[%emt 0:4:12]} 22. d5 {[%emt 0:8:41]} cxd5 {[%emt 0:2:57]} 23. exd5 {[%emt 0:0:15]} Rxc1 {[%emt 0:3:25]} 24. Rxc1 {[%emt 0:1:33]} exd5 {[%emt 0:1:46]} 25. Qxd5 {[%emt 0:1:27]} Qxd5 {[%emt 0:17:11]} 26. Bxd5 {[%emt 0:0:41]} h5 {[%emt 0:1:29]} (26... Rd8 $11 27. Bxb7 Nd4 28. Bxa6 Nf3+ 29. Kg2 Nxe5 )27. Bxb7 $16 {[%emt 0:0:40] Weiß steht aktiver. Das Läuferpaar ist gut.} a5 {[%emt 0:0:14] [#]} 28. Bd5 {[%emt 0:3:21]} ({Günstiger ist} 28. Ba6 $1 $16 {[%cal Ra6b5]} Rb8 29. Rc6 )Rd8 {[%emt 0:0:50]} 29. Ba2 {[%emt 0:4:58] Gewichteter Fehlerwert: Weiß=0.10 (sehr präzise) /Schwarz=0.15 (sehr präzise) .  Fehler:       	Weiß=1     	Schwarz=1     Ungenau:       	Weiß=1     	Schwarz=1     OK:         	Weiß=8     	Schwarz=8     Bester:       	Weiß=1     	---} 1/2-1/2

[Event "57th Biel Festival MTO 2024"]
[White "Mendonca,Leon Luke"]
[Black "Thavandiran,Shiyam"]
[Site "Biel"]
[Round "2.2"]
[Annotator "TA"]
[Result "1/2-1/2"]
[Date "2024.07.16"]
[WhiteElo "2634"]
[BlackElo "2387"]
[PlyCount "121"]
[TimeControl "60"]

{[%evp 31,121,-99,-86,-92,-76,-82,-77,-83,-82,-84,-71,-79,-59,-63,-69,-37,-44,-50,0,-83,-58,-21,106,-97,-82,-87,-80,-94,-76,-78,-75,-70,-62,-46,-48,-48,-48,-41,-12,-25,0,-24,0,0,14,0,0,0,0,0,80,0,0,0,0,0,0,0,0,0,0,0,0,0,0,0,0,0,0,0,0,0,0,0,0,0,0,0,0,0,0,0,0,0,0,0,0,0,0,0,0,0]} 1. e4 {[%emt 0:0:5]} e6 {[%emt 0:0:28]} 2. d4 {[%emt 0:0:21]} d5 {[%emt 0:0:6]} 3. e5 {[%emt 0:0:21]} c5 {[%emt 0:0:9]} 4. c3 {[%emt 0:0:8]} Nc6 {[%emt 0:0:34]} 5. Nf3 {[%emt 0:0:10]} Bd7 {[%emt 0:0:31]} 6. Be2 {[%emt 0:1:19]} Nge7 {[%emt 0:1:18]} 7. Na3 {[%emt 0:1:8]} cxd4 {[%emt 0:5:49]} 8. cxd4 {[%emt 0:0:8]} f6 {[%emt 0:0:9] C02: Französische Verteidigung (Vorstoßvariante).} 9. O-O {[%emt 0:11:54]} fxe5 {[%emt 0:7:0]} 10. Nxe5 {[%emt 0:4:3]} Nxe5 {[%emt 0:0:19]} 11. dxe5 {[%emt 0:0:7]} Ng6 $146 {[%emt 0:7:53]} ({Predecessor:} 11... Nc6 12. f4 Qb6+ 13. Kh1 O-O-O 14. Rf3 g5 15. Nb5 Kb8 16. a4 Bc5 17. Bd2 Rdf8 {1-0 Petrov,M (2448)-Thavandiran,S (2363) Trieste op 24th 2022 (3)} )12. Bd3 {[%emt 0:9:33]} Nxe5 {[%emt 0:20:44]} 13. Qh5+ {[%emt 0:2:12]} Nf7 {[%emt 0:0:11]} 14. Re1 {[%emt 0:7:13]} Be7 {[%emt 0:0:52]} 15. Bf4 {[%emt 0:33:10]} g6 {[%emt 0:9:47]} 16. Qe2 {[%emt 0:1:43]} a6 {[%emt 0:5:38]} 17. Nc2 {[%emt 0:1:50]} Bf6 {[%emt 0:0:19]} 18. Ne3 {[%emt 0:4:11] [#]} O-O $1 {[%emt 0:1:15]} 19. Ng4 {[%emt 0:0:6]} Bg7 {[%emt 0:6:37]} 20. Qd2 {[%emt 0:5:25]} Qb6 {[%emt 0:6:22]} 21. Re2 {[%emt 0:1:5]} Qd4 {[%emt 0:10:55]} 22. h3 {[%emt 0:1:58]} e5 {[%emt 0:3:19]} 23. Be3 {[%emt 0:1:26]} Qa4 {[%emt 0:0:12]} 24. Bc2 $1 {[%emt 0:0:32]} Qb5 {[%emt 0:4:49]} ({Vorzuziehen ist} 24... Qc6 $15 )25. Bb3 {[%emt 0:1:47]} (25. Bd3 $1 $11 {hält das Gleichgewicht.} Qa4 26. Bc2 )Be6 {[%emt 0:9:20]} 26. Rae1 $1 {[%emt 0:1:37]} h5 {[%emt 0:4:51] [#]} (26... Rae8 $11 )27. Nh6+ $2 {[%emt 0:4:43]} (27. Nxe5 $1 $16 Nxe5 28. Bd4 )Kh7 $17 {[%emt 0:0:7]} 28. Nxf7 {[%emt 0:0:9]} Bxf7 {[%emt 0:0:17]} (28... Rxf7 $6 29. Bd4 e4 (29... Bh6 30. Qd1 $11 )30. f3 $11 )29. Bg5 {[%emt 0:0:11]} e4 {[%emt 0:1:23]} 30. Be7 {[%emt 0:8:47]} Rfe8 {[%emt 0:0:48]} 31. Qg5 {[%emt 0:0:16]} Kg8 {[%emt 0:1:32]} 32. Bf6 {[%emt 0:1:37]} Bxf6 {[%emt 0:2:13]} 33. Qxf6 {[%emt 0:0:1]} Qc6 {[%emt 0:0:1]} 34. Qd4 {[%emt 0:2:0]} Rac8 {[%emt 0:0:41]} 35. Rd1 {[%emt 0:1:14]} Red8 {[%emt 0:0:45]} 36. Red2 {[%emt 0:1:14]} Qc5 {[%emt 0:0:35]} 37. Qe5 {[%emt 0:0:29]} Re8 {[%emt 0:0:28]} (37... Qd6 $5 38. Qxe4 dxe4 39. Rxd6 Rxd6 40. Rxd6 Bxb3 41. axb3 Rc1+ 42. Kh2 Rc2 $11 )38. Qg5 {[%emt 0:1:24]} (38. Qg3 {vereinfacht} Qc7 39. Qe3 Re5 40. Bxd5 Rxd5 41. Rxd5 Bxd5 42. Rxd5 Qc1+ 43. Kh2 )e3 {[%emt 0:0:21]} 39. Bxd5 $1 {[%emt 0:2:9]} Kg7 {[%emt 0:0:14]} 40. fxe3 {[%emt 0:0:38]} Rcd8 {[%emt 0:1:0]} (40... Rxe3 $11 {bleibt in der Remisbreite.} 41. Kh1 Rce8 )41. Kh2 {[%emt 0:10:45]} (41. Rd4 $16 )Rd7 $11 {[%emt 0:28:19]} (41... Bxd5 $6 42. Rxd5 Rxd5 43. Rxd5 $16 )42. Rd3 {[%emt 0:26:41]} Qc7+ $1 {[%emt 0:3:45]} ({Natürlich nicht} 42... Bxd5 $6 43. Rxd5 Qc7+ 44. Qf4 $16 )43. Qg3 {[%emt 0:0:21]} Qxg3+ {[%emt 0:1:2]} 44. Kxg3 {[%emt 0:0:1]} Bxd5 {[%emt 0:0:19]} 45. Rxd5 {[%emt 0:0:5]} Rxe3+ {[%emt 0:0:16]} 46. Kf2 {[%emt 0:0:53]} Rde7 {[%emt 0:0:40]} 47. Rd7 {[%emt 0:0:28]} Kh6 {[%emt 0:8:27]} 48. Rxe7 {[%emt 0:0:44]} Rxe7 {[%emt 0:0:3]} 49. Rd6 {[%emt 0:0:33]} Rc7 {[%emt 0:1:9]} 50. Rb6 {[%emt 0:3:46]} Kg5 {[%emt 0:1:11]} 51. g3 {[%emt 0:3:51]} Kf5 {[%emt 0:3:44]} 52. Kf3 {[%emt 0:0:9]} g5 {[%emt 0:3:32]} 53. a4 {[%emt 0:4:58]} g4+ {[%emt 0:1:16]} 54. hxg4+ {[%emt 0:0:2]} hxg4+ {[%emt 0:0:2]} 55. Ke3 {[%emt 0:0:12]} Ke5 {[%emt 0:3:44]} 56. Rb4 {[%emt 0:1:7]} Rc2 {[%emt 0:0:23]} 57. Rxb7 {[%emt 0:3:5]} (57. Rxg4 Rxb2 58. Re4+ Kd5 )Rg2 {[%emt 0:0:6]} 58. Re7+ {[%emt 0:0:22]} Kf5 {[%emt 0:0:29]} 59. Rf7+ {[%emt 0:0:43]} Ke5 {[%emt 0:0:7]} 60. Re7+ {[%emt 0:0:15]} Kf5 {[%emt 0:0:41]} 61. Rf7+ {[%emt 0:15:28]} 1/2-1/2

[Event "57th Biel Festival MTO 2024"]
[White "Boldoo,Erdenepurev"]
[Black "Nesterov,Arseniy"]
[Site "Biel"]
[Round "2.3"]
[Annotator "TA"]
[Result "1/2-1/2"]
[Date "2024.07.16"]
[WhiteElo "2385"]
[BlackElo "2609"]
[PlyCount "71"]
[TimeControl "60"]

{[%evp 9,71,0,0,-22,-23,-14,0,-3,0,4,6,0,30,11,11,15,47,31,40,14,83,75,72,12,28,12,31,39,16,0,0,0,13,6,1,-12,-10,-9,0,0,0,0,0,0,0,0,0,-11,-9,-10,-10,-31,-27,-27,0,0,0,0,0,0,0,0,0,0]} 1. d4 {[%emt 0:0:3]} Nf6 {[%emt 0:0:7]} 2. c4 {[%emt 0:0:9]} e6 {[%emt 0:0:6]} 3. Bf4 {[%emt 0:0:37]} d5 {[%emt 0:0:19]} 4. cxd5 {[%emt 0:0:34]} Nxd5 {[%emt 0:0:18]} 5. Bg3 {[%emt 0:0:43]} c5 {[%emt 0:0:34]} 6. e4 {[%emt 0:0:48]} Nf6 {[%emt 0:0:19][%csl LRd4,LRe4]} 7. Nd2 {[%emt 0:0:32]} cxd4 {[%emt 0:1:23]} 8. e5 {[%emt 0:0:28]} Nd5 {[%emt 0:0:32]} 9. Ngf3 {[%emt 0:0:12]} Nc6 {[%emt 0:0:6]} 10. Bd3 {[%emt 0:1:25]} Bd7 {[%emt 0:2:41]} 11. a3 {[%emt 0:1:57][%mdl 1024] Prevents Ncb4. White has compensation.} Be7 {[%emt 0:3:5]} 12. h4 {[%emt 0:0:57]} h6 {[%emt 0:8:55][%cal Ob7b5]} 13. O-O {[%emt 0:0:59]} Rc8 {[%emt 0:11:44]} 14. Rc1 {[%emt 0:1:23]} O-O {[%emt 0:2:24]} (14... b5 $11 {keeps the balance.} )15. Re1 $16 {[%emt 0:3:37]} b5 {[%emt 0:9:12][%cal Bb7b5,Bb5b4][%mdl 32]} 16. Nb3 {[%emt 0:6:8] White is more active.} (16. Bxb5 Nxe5 17. Rxc8 Qxc8 $11 )(16. Qe2 $16 )b4 {[%emt 0:7:19]} 17. a4 {[%emt 0:0:22][%cal Oh4h5]} Na5 {[%emt 0:0:7]} 18. Rxc8 {[%emt 0:0:49]} Bxc8 {[%emt 0:0:1]} 19. Nbxd4 {[%emt 0:0:15]} b3 {[%emt 0:0:18]} 20. Nxb3 {[%emt 0:10:42]} Nb4 {[%emt 0:0:18]} 21. Nxa5 {[%emt 0:0:49]} Qxa5 {[%emt 0:0:44]} 22. Bb1 {[%emt 0:4:52]} Rd8 {[%emt 0:0:34]} 23. Qe2 {[%emt 0:2:52]} Bb7 {[%emt 0:6:20] Repels Qe4} ({Of course not} 23... Qxa4 $6 24. Qe4 Kf8 (24... g6 25. h5 $16 )25. Qh7 $18 )24. b3 {[%emt 0:1:23]} Qd5 {[%emt 0:0:18]} 25. Be4 {[%emt 0:3:43]} Qxe4 {[%emt 0:0:9]} 26. Qxe4 {[%emt 0:0:2]} Bxe4 {[%emt 0:0:7]} 27. Rxe4 {[%emt 0:0:5]} Rd3 {[%emt 0:3:27]} 28. Rc4 {[%emt 0:1:28]} Nd5 {[%emt 0:0:17]} 29. Rc8+ {[%emt 0:5:39]} Kh7 {[%emt 0:0:36]} 30. Rb8 {[%emt 0:0:6]} a5 {[%emt 0:0:2]} 31. h5 {[%emt 0:14:48]} Bb4 {[%emt 0:0:36][%cal Og7g6]} 32. Rb7 {[%emt 0:0:5] The position is equal.} Kg8 {[%emt 0:0:28]} 33. Rb8+ {[%emt 0:0:41]} Kh7 {[%emt 0:0:1][%cal Og7g5]} 34. Rb7 {[%emt 0:0:6]} Kg8 {[%emt 0:0:17]} 35. Rb8+ {[%emt 0:0:7]} Kh7 {[%emt 0:0:3][%cal Og7g5]} 36. Rb7 {[%emt 0:1:33] Weighted Error Value: White=0.09 (flawless) /Black=0.10 (very precise) .  Mistake:       	White=1     	Black=1      Inaccurate:     	White=1     	Black=3      OK:         	White=14    	Black=12     Best:        	White=2     	Black=2} 1/2-1/2